bitfinex/quotes_ETHUSD_20230403
["timestamp","ask_amount","ask_price","bid_price","bid_amount"]
[1680557541969,0.11000001,1782.8,1782.6,4.94705928]
[1680557542138,0.11000001,1782.8,1782.7,1.9633]
[1680557542344,0.11000001,1782.8,1782.7,4.72932218]
[1680557542543,0.11000001,1782.8,1782.7,4.74732218]
[1680557542746,0.05300495,1782.8,1782.7,5.31727279]
[1680557542959,0.05300495,1782.8,1782.7,6.09030378]
[1680557543277,0.05300495,1782.8,1782.7,8.58130378]
[1680557543767,0.11000001,1783.1,1782.7,8.58130378]
[1680557543941,0.11000001,1783.1,1782.9,2.76602218]
[1680557544281,0.11000001,1783.1,1783.0,5.2535944]
[1680557544449,0.11000001,1783.1,1783.0,4.74699218]
[1680557544971,0.0535635,1783.1,1783.0,5.31135726]
[1680557545472,0.0535635,1783.1,1783.0,5.54135726]
[1680557545675,0.0535635,1783.1,1783.0,7.32603299]
[1680557545971,0.11000001,1783.2,1783.0,7.32603299]
[1680557546476,0.11000001,1783.2,1783.1,2.78402218]
[1680557546637,0.11000001,1783.2,1783.1,3.85525218]
[1680557546834,0.11000001,1783.2,1783.1,4.35894842]
[1680557547064,0.11000001,1783.2,1783.1,5.08568084]
[1680557556786,0.11000001,1783.2,1783.1,5.23442968]
[1680557559283,0.11000001,1783.2,1783.1,4.67360968]
[1680557559485,0.11000001,1783.2,1783.1,3.71687726]
[1680557559887,0.11000001,1783.2,1783.1,0.65244508]
[1680557560453,0.11000001,1783.2,1783.1,0.93285508]
[1680557560896,0.11000001,1783.2,1783.1,0.65244508]
[1680557561401,0.13362449,1783.2,1783.1,0.65244508]
[1680557561700,0.31212494,1783.2,1783.1,0.65244508]
[1680557561866,0.32112494,1783.2,1783.0,2.7]
[1680557562804,0.32112494,1783.2,1783.1,0.65244508]
[1680557563855,0.60151494,1783.2,1783.1,0.65244508]
[1680557564182,3.12351494,1783.2,1783.1,0.65244508]
[1680557564378,6.12351494,1783.2,1783.1,0.65244508]
[1680557564574,6.12551494,1783.2,1783.1,0.65244508]
[1680557565705,5.84512494,1783.2,1783.1,0.65244508]
[1680557566508,6.12551494,1783.2,1783.1,0.65244508]
[1680557567495,4.58412494,1783.2,1783.1,0.65244508]
[1680557567808,4.86251494,1783.2,1783.1,0.65244508]
[1680557568010,4.58212494,1783.2,1783.1,0.65244508]
[1680557568975,6.67329494,1783.2,1783.1,0.65244508]
[1680557569305,6.11451494,1783.2,1783.1,0.65244508]
[1680557569787,7.11451494,1783.2,1783.1,0.65244508]
[1680557572176,5.85351494,1783.2,1783.1,0.65244508]
[1680557575695,4.85351494,1783.2,1783.1,0.65244508]
[1680557576048,5.85151494,1783.2,1783.1,0.65244508]
[1680557576201,4.60351494,1783.2,1783.1,0.65244508]
[1680557576397,4.60151494,1783.2,1783.1,0.65244508]
[1680557577909,4.32112494,1783.2,1783.1,0.65244508]
[1680557579437,4.60151494,1783.2,1783.1,0.65244508]
[1680557579638,4.46159966,1783.2,1783.1,0.65244508]
[1680557580136,3.46159966,1783.2,1783.1,0.65244508]
[1680557580335,4.46159966,1783.2,1783.1,0.65244508]
[1680557581101,3.43797518,1783.2,1783.1,0.65244508]
[1680557581302,3.25947473,1783.2,1783.1,0.65244508]
[1680557581508,3.25947473,1783.2,1783.1,0.39234565]
[1680557581746,3.25047473,1783.2,1783.1,0.39234565]
[1680557581928,3.25047473,1783.2,1783.1,0.65623213]
[1680557582415,0.25047473,1783.2,1783.1,0.65623213]
[1680557583452,0.25047473,1783.2,1783.1,1.27226534]
[1680557585125,0.25047473,1783.2,1783.1,1.83308534]
[1680557585334,0.11000001,1783.2,1783.1,1.83308534]
[1680557587848,0.11000001,1783.2,1783.1,1.85108534]
[1680557588011,1.36169574,1783.7,1783.1,4.62110752]
[1680557588211,0.11000001,1784.2,1783.6,7.53158218]
[1680557588412,0.003,1783.9,1783.8,8.66202218]
[1680557588650,1e-08,1784.2,1783.9,1.0]
[1680557588849,0.59277594,1784.9,1784.2,1.96165]
[1680557589053,0.009,1785.0,1784.4,1.96136]
[1680557589252,0.59277594,1785.2,1784.8,1.261]
[1680557589441,0.97270656,1785.1,1784.8,1.261]
[1680557589752,1.74470536,1785.2,1784.5,1.279]
[1680557589919,1.45562536,1785.2,1784.9,0.64043402]
[1680557590114,1.84557366,1785.2,1784.9,0.64043402]
[1680557590342,1.55650843,1785.1,1784.9,0.64043402]
[1680557590556,1.84559843,1785.1,1784.9,0.64043402]
[1680557590723,0.28909,1785.1,1784.6,0.018]
[1680557591062,1.28909,1785.2,1784.7,2.76602218]
[1680557591226,1.28009,1785.2,1784.7,2.76602218]
[1680557593368,1.28909,1785.2,1784.7,2.76602218]
[1680557594931,0.28909,1785.2,1784.7,2.76602218]
[1680557595138,1.36737445,1785.2,1784.7,2.76602218]
[1680557595335,1.37637445,1785.2,1784.6,0.40470222]
[1680557595536,1.36737445,1785.2,1784.6,2.76602218]
[1680557595770,1.37637445,1785.2,1784.6,2.76602218]
[1680557596561,1.0,1785.0,1784.5,0.002]
[1680557596834,0.84048,1784.7,1784.3,11.8078]
[1680557597062,0.84048,1784.7,1784.2,0.002]
[1680557597249,9.50250218,1784.7,1783.9,13.1279]
[1680557597458,0.2802,1784.4,1783.9,14.41669]
[1680557597687,0.2802,1784.4,1783.9,14.42069]
[1680557598042,0.2802,1784.4,1783.9,14.41469]
[1680557598590,0.2802,1784.4,1784.2,2.7]
[1680557598796,0.2892,1784.4,1784.2,2.7]
[1680557599095,10.92302218,1784.3,1784.2,2.7]
[1680557599388,22.57789218,1784.3,1784.2,2.7]
[1680557599569,6.896,1783.9,1783.8,0.008]
[1680557599751,0.84102,1783.6,1783.1,0.018]
[1680557599952,0.84102,1783.6,1782.9,12.0544]
[1680557599953,0.84102,1783.6,1783.0,0.006]
[1680557600142,3.84102,1783.6,1783.0,1.23124]
[1680557600547,3.86464448,1783.6,1783.0,1.23124]
[1680557600745,3.86464448,1783.6,1783.1,0.56329718]
[1680557600948,3.86464448,1783.6,1783.1,0.56929718]
[1680557602381,4.46353493,1783.6,1783.1,0.56929718]
[1680557602579,0.003,1783.7,1783.1,0.56929718]
[1680557602784,3.0,1783.7,1783.2,0.018]
[1680557602942,3.0,1783.7,1783.2,0.28039]
[1680557603142,3.0,1783.7,1783.2,0.36915872]
[1680557603363,3.0,1783.7,1783.2,0.09276872]
[1680557603864,3.2833,1783.8,1783.2,0.09276872]
[1680557604071,3.2803,1783.8,1783.2,0.37315872]
[1680557604382,3.0,1783.8,1783.2,3.1391809]
[1680557604683,0.83783178,1783.9,1783.3,0.31391809]
[1680557604863,0.55455178,1783.9,1783.4,2.76602218]
[1680557605064,0.55455178,1783.9,1783.4,2.77202218]
[1680557605065,0.28028,1783.9,1783.4,2.77202218]
[1680557605269,0.42384575,1783.9,1783.4,2.77202218]
[1680557605450,0.42384575,1783.9,1783.5,0.27720222]
[1680557606247,0.14356575,1783.9,1783.5,0.27720222]
[1680557606879,0.14356575,1783.9,1783.5,0.55754222]
[1680557607252,0.14356575,1783.9,1783.5,0.56354222]
[1680557607458,0.14356575,1783.9,1783.6,2.76602218]
[1680557607786,0.14356575,1783.9,1783.7,0.27660222]
[1680557607948,0.14356575,1783.9,1783.8,2.76602218]
[1680557609770,0.56045,1784.3,1783.8,2.77202218]
[1680557609979,0.84068,1784.3,1783.8,2.77202218]
[1680557610345,0.44729217,1784.4,1783.8,2.77202218]
[1680557610539,0.44729217,1784.4,1783.9,0.27720222]
[1680557610750,0.44729217,1784.4,1784.0,2.76602218]
[1680557610751,0.44728217,1784.4,1784.0,2.76602218]
[1680557611659,1.00769217,1784.4,1783.9,0.28320222]
[1680557611847,0.44728217,1784.4,1783.9,2.76602218]
[1680557612084,0.44728217,1784.4,1784.0,0.018]
[1680557612247,0.44728217,1784.4,1783.9,2.77202218]
[1680557612780,0.44728217,1784.4,1783.9,3.07030218]
[1680557613082,0.16708217,1784.4,1784.0,2.76602218]
[1680557613240,0.16708217,1784.4,1784.1,0.27660222]
[1680557614485,0.44728217,1784.4,1784.1,0.27660222]
[1680557614659,0.16708217,1784.4,1784.1,0.27660222]
[1680557615046,0.44728217,1784.4,1784.1,0.27660222]
[1680557615387,0.16708217,1784.4,1784.1,0.27660222]
[1680557615591,0.44728217,1784.4,1784.1,0.27660222]
[1680557615772,0.16708217,1784.4,1784.2,0.61291631]
[1680557616086,0.44729217,1784.4,1784.2,0.61291631]
[1680557616461,0.16708217,1784.4,1784.2,0.61291631]
[1680557618284,0.44728217,1784.4,1784.2,0.61291631]
[1680557618479,0.16708217,1784.4,1784.2,0.61291631]
[1680557619556,0.44728217,1784.4,1784.2,0.61291631]
[1680557620393,0.16708217,1784.4,1784.2,0.61291631]
[1680557620597,0.14345769,1784.4,1784.2,0.61291631]
[1680557620796,0.14345769,1784.4,1784.2,0.70186816]
[1680557622761,0.14345769,1784.4,1784.2,0.61291631]
[1680557623881,0.98406769,1784.4,1784.2,0.61291631]
[1680557624098,0.42365769,1784.4,1784.2,0.61291631]
[1680557624762,0.42365769,1784.4,1783.9,0.006]
[1680557624956,0.42365769,1784.4,1783.8,0.024]
[1680557625188,0.98406769,1784.4,1783.8,2.8761444]
[1680557625369,0.98406769,1784.4,1783.8,3.1564344]
[1680557625574,0.42365769,1784.4,1783.8,3.1564344]
[1680557625789,0.98406769,1784.4,1783.8,2.8761444]
[1680557625961,0.98406769,1784.4,1783.9,0.28761444]
[1680557626162,0.98406769,1784.4,1783.9,0.29361444]
[1680557626803,0.42365769,1784.4,1783.9,0.29361444]
[1680557626984,0.42365769,1784.4,1783.9,0.006]
[1680557627301,0.02362448,1784.3,1783.8,2.77202218]
[1680557627490,0.02362448,1784.3,1783.8,2.79002218]
[1680557627491,0.30384448,1784.3,1783.8,2.79002218]
[1680557627793,0.30384448,1784.3,1783.8,3.07032218]
[1680557627958,0.02362448,1784.3,1783.8,3.07032218]
[1680557628155,0.02362448,1784.3,1783.9,0.30703222]
[1680557628590,0.30384448,1784.3,1783.9,0.30703222]
[1680557628764,0.30384448,1784.3,1783.9,0.31303222]
[1680557629869,0.02362448,1784.3,1783.9,0.31303222]
[1680557630504,0.02362448,1784.3,1783.9,0.33103222]
[1680557630880,0.02362448,1784.3,1784.0,0.61307683]
[1680557631471,0.30384448,1784.3,1784.0,0.61307683]
[1680557631730,0.02362448,1784.3,1784.0,0.61307683]
[1680557632388,0.02362448,1784.3,1784.0,0.73551574]
[1680557632591,0.02362448,1784.3,1784.0,1.01577574]
[1680557633101,0.02362448,1784.3,1784.0,3.50153792]
[1680557633268,0.14345769,1784.4,1784.0,3.50753792]
[1680557633466,0.14345769,1784.4,1784.1,2.76602218]
[1680557633665,0.42365769,1784.4,1784.1,2.77002218]
[1680557633882,0.98406769,1784.4,1784.1,2.77202218]
[1680557636020,0.98406769,1784.4,1784.1,0.006]
[1680557636021,1.38247446,1784.4,1784.1,0.006]
[1680557636178,1.38247446,1784.4,1784.0,0.61307683]
[1680557636780,1.38247446,1784.4,1783.8,0.024]
[1680557637016,1.38247446,1784.4,1783.9,2.76602218]
[1680557637316,1.38247446,1784.4,1783.9,2.77202218]
[1680557640621,1.38247446,1784.4,1783.9,3.0510244]
[1680557643345,0.98406769,1784.4,1783.9,4.3120244]
[1680557644846,0.42365769,1784.4,1783.9,4.3120244]
[1680557645018,0.42365769,1784.4,1784.0,0.018]
[1680557645350,0.14345769,1784.4,1784.0,2.76602218]
[1680557645520,0.14345769,1784.4,1784.0,2.77202218]
[1680557645716,0.14345769,1784.4,1784.1,0.62792862]
[1680557646321,0.14345769,1784.4,1784.1,0.62992862]
[1680557646712,0.42365769,1784.4,1784.1,0.62992862]
[1680557647212,0.42365769,1784.4,1784.1,0.62792862]
[1680557647606,0.42365769,1784.4,1784.1,0.62992862]
[1680557648344,0.02362448,1784.5,1784.1,3.03862674]
[1680557648551,0.02362448,1784.5,1784.1,2.48212674]
[1680557648908,0.02362448,1784.5,1784.1,2.47612674]
[1680557649303,0.13777355,1784.5,1784.2,2.76602218]
[1680557649524,0.13777355,1784.5,1784.3,0.27660222]
[1680557651829,0.41796355,1784.5,1784.3,0.27660222]
[1680557652523,0.13777355,1784.5,1784.3,0.27660222]
[1680557657435,0.13777355,1784.5,1784.4,2.76602218]
[1680557657963,0.11000001,1784.7,1784.4,2.76602218]
[1680557658115,0.11000001,1784.7,1784.5,0.27660222]
[1680557658323,0.11000001,1784.7,1784.5,3.0426244]
[1680557658550,0.25117195,1784.7,1784.5,3.0426244]
[1680557660735,0.25117195,1784.7,1784.6,0.62385071]
[1680557663841,0.11000001,1784.7,1784.6,3.38987289]
[1680557664040,0.11000001,1784.7,1784.6,0.62385071]
[1680557664239,0.11000001,1784.7,1784.6,0.714696]
[1680557664562,0.11000001,1784.7,1784.6,3.71071818]
[1680557664767,0.11000001,1784.7,1784.6,3.48071818]
[1680557667581,0.11000001,1784.7,1784.6,3.76088818]
[1680557667752,0.11000001,1784.7,1784.6,3.48071818]
[1680557667936,0.11000001,1784.7,1784.6,3.76088818]
[1680557668282,0.11000001,1784.7,1784.6,4.32122818]
[1680557668572,0.11000001,1784.7,1784.6,4.55122818]
[1680557668778,0.11000001,1784.7,1784.6,5.81222818]
[1680557668942,0.11000001,1784.7,1784.6,11.71422818]
[1680557669140,0.11000001,1784.7,1784.6,11.70822818]
[1680557669367,0.11000001,1784.7,1784.6,11.72822818]
[1680557669769,0.11000001,1784.7,1784.6,11.72622818]
[1680557669971,0.11000001,1784.7,1784.6,11.73222818]
[1680557672374,0.10759676,1784.7,1784.6,11.72622818]
[1680557672677,3.0,1785.2,1784.6,11.73222818]
[1680557672879,3.28008,1785.2,1784.7,10.065245]
[1680557673123,0.28008,1785.2,1784.7,10.089245]
[1680557673411,0.28008,1785.2,1784.8,12.3931]
[1680557673573,0.28008,1785.2,1784.9,4.00533218]
[1680557673909,0.28008,1785.2,1784.9,4.01133218]
[1680557675784,0.56013,1785.3,1785.0,0.61721013]
[1680557676027,0.84021,1785.3,1785.0,3.38323231]
[1680557676227,0.84021,1785.3,1785.0,3.85208654]
[1680557678031,0.84021,1785.3,1785.0,1.08606436]
[1680557678251,0.84021,1785.3,1785.0,0.61721013]
[1680557688771,0.84028,1785.1,1785.0,0.61721013]
[1680557688952,0.84028,1785.1,1784.5,11.7668]
[1680557689146,3.84028,1785.1,1784.5,14.53882218]
[1680557690142,3.84028,1785.1,1784.6,1.45388222]
[1680557690344,3.84028,1785.1,1784.6,1.45988222]
[1680557690844,3.84028,1785.1,1784.7,0.60940199]
[1680557691067,3.84028,1785.1,1784.7,0.61340199]
[1680557693051,3.0,1785.1,1784.7,0.61340199]
[1680557693256,3.27792471,1785.1,1784.8,0.0613402]
[1680557693460,3.27792471,1785.1,1784.7,0.60940199]
[1680557693769,3.27792471,1785.1,1784.6,1.45988222]
[1680557693965,3.27792471,1785.1,1784.6,4.2259044]
[1680557697795,3.83811471,1785.1,1784.6,4.2259044]
[1680557700487,3.84511471,1785.1,1784.6,4.21726237]
[1680557700718,3.84511471,1785.1,1784.7,0.42172624]
[1680557702413,0.007,1785.1,1784.8,2.76602218]
[1680557702803,0.28708,1785.2,1784.8,2.76602218]
[1680557702999,0.007,1785.2,1784.8,2.76602218]
[1680557703204,0.28708,1785.2,1784.8,2.76602218]
[1680557703400,0.28708,1785.2,1784.9,0.27660222]
[1680557703587,0.28708,1785.2,1784.9,3.0426244]
[1680557703785,0.28008,1785.2,1784.9,3.0426244]
[1680557704220,0.28708,1785.2,1784.9,3.0426244]
[1680557704793,0.007,1785.2,1784.9,3.0426244]
[1680557704991,0.28708,1785.2,1785.0,0.30426244]
[1680557705803,0.28708,1785.2,1785.1,0.60606919]
[1680557706124,0.007,1785.2,1785.1,0.60606919]
[1680557706625,0.28708,1785.2,1785.1,0.60606919]
[1680557706802,0.007,1785.2,1785.1,0.60606919]
[1680557707844,0.007,1785.2,1785.1,0.69710235]
[1680557708812,0.007,1785.2,1785.1,0.60606919]
[1680557709807,3.76973447,1785.3,1785.1,0.60606919]
[1680557711044,3.48966447,1785.3,1785.1,0.60606919]
[1680557711254,4.31900337,1785.4,1785.1,0.60606919]
[1680557711414,3.44415395,1785.4,1785.1,0.60606919]
[1680557711744,4.87609337,1785.4,1785.1,0.60606919]
[1680557712248,1.25262957,1785.3,1785.1,0.60606919]
[1680557712543,3.28007,1785.3,1785.1,0.60606919]
[1680557712944,0.28007,1785.3,1785.1,0.60606919]
[1680557715042,0.28007,1785.3,1785.1,0.69770235]
[1680557716374,0.28007,1785.3,1785.1,0.60606919]
[1680557716737,0.84019,1785.3,1785.1,0.60606919]
[1680557718466,1.54519,1785.3,1785.1,0.60606919]
[1680557718676,4.54519,1785.3,1785.1,0.60606919]
[1680557719768,5.13085576,1785.3,1785.1,0.60606919]
[1680557719938,5.13385576,1785.3,1785.1,0.60606919]
[1680557721139,4.42585576,1785.3,1785.1,0.60606919]
[1680557723027,3.84019,1785.3,1785.1,3.37209137]
[1680557723337,4.42585576,1785.3,1785.1,0.61206919]
[1680557723541,4.42585576,1785.3,1785.1,0.60606919]
[1680557726930,5.29770518,1785.3,1785.1,0.60606919]
[1680557727131,5.30070518,1785.3,1785.1,0.60606919]
[1680557727372,2.93317915,1785.2,1785.1,0.60606919]
[1680557727556,7.34223334,1785.2,1785.1,0.60606919]
[1680557727730,7.34523334,1785.2,1784.8,0.006]
[1680557727926,7.34523334,1785.2,1784.7,0.006]
[1680557727927,0.84034,1785.0,1784.7,0.006]
[1680557728923,0.84034,1785.0,1784.8,0.5599205]
[1680557729987,1.42600576,1785.0,1784.6,0.006]
[1680557730178,0.084034,1784.9,1784.6,0.006]
[1680557730359,1.96099,1784.8,1784.6,0.006]
[1680557730766,1.96099,1784.8,1784.7,0.5601502]
[1680557733894,1.95732304,1784.8,1784.7,0.5601502]
[1680557734684,0.83675304,1784.8,1784.7,0.5601502]
[1680557734868,0.83675304,1784.8,1784.5,11.5955]
[1680557735078,0.83675304,1784.8,1784.5,13.27023]
[1680557735803,0.83675304,1784.8,1784.6,1.36041452]
[1680557737897,0.27647304,1784.8,1784.6,1.36041452]
[1680557738717,3.27647304,1784.8,1784.6,1.36041452]
[1680557738909,0.27647304,1784.8,1784.6,1.36041452]
[1680557739214,0.27647304,1784.8,1784.6,2.82367897]
[1680557739810,0.56025,1784.9,1784.6,2.82367897]
[1680557740010,0.84038,1784.9,1784.6,2.82367897]
[1680557740317,0.28013,1784.9,1784.6,2.82367897]
[1680557740520,0.42136935,1784.9,1784.6,2.82367897]
[1680557744084,0.98161935,1784.9,1784.6,2.82367897]
[1680557747959,0.14123935,1784.9,1784.7,0.2823679]
[1680557751052,0.14123935,1784.9,1784.8,1.35777852]
[1680557755229,0.42135935,1784.9,1784.8,1.35777852]
[1680557756272,0.98160935,1784.9,1784.8,1.35777852]
[1680557757747,0.98160935,1784.9,1784.6,0.006]
[1680557757943,0.98160935,1784.9,1784.5,13.27023]
[1680557765973,0.98160935,1784.9,1784.6,1.30859192]
[1680557767743,0.42135935,1784.9,1784.6,1.30859192]
[1680557768168,0.98160935,1784.9,1784.6,1.30859192]
[1680557771204,1.6781618,1784.9,1784.6,1.30859192]
[1680557771361,2.97182756,1784.9,1784.6,1.30859192]
[1680557771695,1.96109,1784.7,1784.6,1.30859192]
[1680557771846,1.96109,1784.7,1784.4,0.006]
[1680557772046,1.96109,1784.7,1784.3,0.006]
[1680557772363,3.32370122,1784.7,1784.3,0.006]
[1680557772693,3.28018,1784.6,1784.2,0.90396392]
[1680557772842,3.28018,1784.6,1784.4,1.30880213]
[1680557773757,3.28018,1784.6,1784.2,0.90396392]
[1680557774477,3.0,1784.6,1784.3,0.87996392]
[1680557774686,0.28314,1784.8,1784.4,0.08799639]
[1680557774923,0.28014,1784.8,1784.4,0.08799639]
[1680557775132,0.84042,1784.8,1784.4,0.08799639]
[1680557775423,3.84042,1784.8,1784.4,0.08799639]
[1680557775624,3.0,1784.8,1784.4,0.08799639]
[1680557775807,3.28014,1784.8,1784.4,0.08799639]
[1680557776609,3.0,1784.8,1784.4,0.08799639]
[1680557776807,3.28014,1784.8,1784.4,0.08799639]
[1680557777417,3.0,1784.8,1784.4,0.08799639]
[1680557777794,3.28014,1784.8,1784.4,0.08799639]
[1680557779117,3.84042,1784.8,1784.4,0.08799639]
[1680557780956,3.84042,1784.8,1784.5,1.2619296]
[1680557781604,3.28014,1784.8,1784.5,1.2619296]
[1680557783213,3.0,1784.8,1784.5,1.2619296]
[1680557783416,3.28014,1784.8,1784.5,1.2619296]
[1680557784527,3.84042,1784.8,1784.5,1.2619296]
[1680557785434,4.74007838,1784.8,1784.5,1.2619296]
[1680557787929,0.45398383,1784.9,1784.5,1.2619296]
[1680557788141,0.16486383,1784.9,1784.5,1.2619296]
[1680557788354,0.44498383,1784.9,1784.5,1.2619296]
[1680557789492,0.44181702,1784.9,1784.5,2.14789352]
[1680557790398,0.44181702,1784.9,1784.5,1.2679296]
[1680557791455,0.44181702,1784.9,1784.5,3.32112748]
[1680557792933,1.00206702,1784.9,1784.5,1.2679296]
[1680557794133,1.00206702,1784.9,1784.5,1.2619296]
[1680557797138,9.6640892,1784.9,1784.5,1.2619296]
[1680557797338,2.76602218,1784.8,1784.5,1.2619296]
[1680557797522,3.84046,1784.7,1784.5,1.2619296]
[1680557797841,3.84046,1784.7,1784.3,12.96036392]
[1680557798940,3.84046,1784.7,1784.4,1.26214297]
[1680557799102,3.84646,1784.7,1784.4,1.24714297]
[1680557799300,0.384646,1784.6,1784.4,1.24714297]
[1680557799634,0.28019,1784.5,1784.4,1.24714297]
[1680557802449,3.58993448,1784.7,1784.4,1.24714297]
[1680557802750,0.28019,1784.5,1784.4,1.24714297]
[1680557805658,0.84057,1784.5,1784.4,1.24714297]
[1680557805856,1.036702,1784.5,1784.4,1.24714297]
[1680557806986,1.036702,1784.5,1784.2,0.88196392]
[1680557807117,1.036702,1784.5,1784.2,0.87996392]
[1680557807965,1.036702,1784.5,1784.3,1.26182065]
[1680557808250,0.3838702,1784.4,1784.3,1.26182065]
[1680557808555,0.9442802,1784.4,1784.3,1.26182065]
[1680557810636,0.9442802,1784.4,1784.3,1.25862511]
[1680557811974,0.9442802,1784.4,1784.1,19.07774915]
[1680557812291,0.9442802,1784.4,1784.1,19.07574915]
[1680557812445,0.9442802,1784.4,1784.1,17.90246392]
[1680557812981,0.9442802,1784.4,1784.2,1.26191994]
[1680557815537,0.09442802,1784.3,1784.2,1.26191994]
[1680557815744,0.37464802,1784.3,1784.2,1.26191994]
[1680557815970,0.28022,1784.3,1784.2,1.26191994]
[1680557819916,0.84063,1784.4,1784.2,1.26191994]
[1680557820074,0.28022,1784.4,1784.2,1.26191994]
[1680557820279,3.58811966,1784.5,1784.2,1.26191994]
[1680557820431,0.55849518,1784.5,1784.3,0.12619199]
[1680557820636,0.717,1784.8,1784.3,0.40639199]
[1680557820878,0.708,1784.8,1784.3,0.96683199]
[1680557821199,0.708,1784.8,1784.4,0.0966832]
[1680557821354,0.16169702,1784.9,1784.4,0.0966832]
[1680557821553,0.13807254,1784.9,1784.4,13.1267832]
[1680557821785,0.13807254,1784.9,1784.5,1.31267832]
[1680557822086,0.13807254,1784.9,1784.5,1.59284832]
[1680557823844,0.13807254,1784.9,1784.5,2.15322832]
[1680557824080,0.13807254,1784.9,1784.5,3.03319224]
[1680557824597,3.006,1785.0,1784.6,2.76602218]
[1680557824598,3.0,1785.0,1784.6,2.76602218]
[1680557824747,3.74062448,1785.1,1784.7,0.55675222]
[1680557824942,3.02962448,1785.1,1784.7,0.55675222]
[1680557825155,3.17264889,1785.1,1784.7,0.55675222]
[1680557825776,0.14902441,1785.1,1784.8,2.76602218]
[1680557825954,0.009,1785.2,1784.9,1.11697222]
[1680557826155,0.14269158,1785.2,1784.9,1.11697222]
[1680557826490,3.42195376,1785.5,1784.9,0.55672222]
[1680557826491,0.006,1785.4,1784.9,0.55672222]
[1680557826642,0.28605,1785.4,1784.9,0.27660222]
[1680557826847,0.006,1785.4,1784.9,0.55672222]
[1680557827048,2.3853398,1785.5,1785.0,0.05567222]
[1680557827251,2.3853398,1785.5,1784.9,0.27660222]
[1680557827451,1.79967404,1785.5,1784.9,0.27660222]
[1680557827659,2.3853398,1785.5,1784.9,0.27660222]
[1680557827857,1.79967404,1785.5,1784.9,0.27660222]
[1680557828590,4.79967404,1785.5,1784.9,0.27660222]
[1680557828888,4.51963404,1785.5,1784.9,0.55671222]
[1680557829083,3.25808958,1785.5,1785.0,0.05567122]
[1680557829250,3.25808958,1785.5,1785.0,0.33577122]
[1680557829444,3.25808958,1785.5,1785.1,2.76602218]
[1680557829685,0.25808958,1785.5,1785.2,0.27660222]
[1680557829889,0.25208958,1785.5,1785.2,0.27660222]
[1680557830451,0.25208958,1785.5,1785.2,0.55667222]
[1680557830974,0.25208958,1785.5,1785.2,1.11683222]
[1680557831180,0.25208958,1785.5,1785.3,0.11168322]
[1680557831350,0.11000001,1785.5,1785.3,0.11168322]
[1680557832401,0.11000001,1785.5,1785.3,0.28006]
[1680557835016,0.10633363,1785.5,1785.3,0.28006]
[1680557836991,0.10633363,1785.5,1785.2,1.11681222]
[1680557837220,0.10633363,1785.5,1785.2,3.8828344]
[1680557837386,0.10633363,1785.5,1785.3,0.38828344]
[1680557837588,0.10633363,1785.5,1785.3,0.66834344]
[1680557837970,0.10633363,1785.5,1785.3,0.38828344]
[1680557838486,0.10633363,1785.5,1785.3,0.66834344]
[1680557838699,0.10633363,1785.5,1785.3,0.38828344]
[1680557840413,0.10633363,1785.5,1785.3,0.66833344]
[1680557840632,0.10633363,1785.5,1785.4,0.06683334]
[1680557840831,0.10633363,1785.5,1785.4,1.32448283]
[1680557841041,0.10633363,1785.5,1785.4,1.25764949]
[1680557841198,0.38636363,1785.5,1785.4,1.25764949]
[1680557842040,0.38636363,1785.5,1785.2,2.77402218]
[1680557842332,0.38636363,1785.5,1785.2,2.76602218]
[1680557843035,0.38636363,1785.5,1785.1,12.1054]
[1680557843036,0.97004811,1785.5,1785.1,12.1054]
[1680557843195,0.97004811,1785.5,1785.1,16.59945218]
[1680557843394,0.40998811,1785.5,1785.1,16.59945218]
[1680557845339,0.12995811,1785.5,1785.1,16.59945218]
[1680557846643,0.40998811,1785.5,1785.1,16.59945218]
[1680557847129,0.40998811,1785.5,1785.1,14.86942218]
[1680557850700,0.12995811,1785.5,1785.1,14.86942218]
[1680557851817,0.40998811,1785.5,1785.1,14.86942218]
[1680557852028,0.12995811,1785.5,1785.1,14.86942218]
[1680557852330,0.10633363,1785.5,1785.1,15.14951218]
[1680557852531,0.10633363,1785.5,1785.2,1.51495122]
[1680557855827,0.10633363,1785.5,1785.3,1.25687362]
[1680557857926,0.10633363,1785.5,1785.3,4.3029458]
[1680557858131,0.10633363,1785.5,1785.4,2.76602218]
[1680557858132,0.10417266,1785.5,1785.4,2.76602218]
[1680557858336,0.10417266,1785.5,1785.4,3.16831176]
[1680557861365,0.10417266,1785.5,1785.4,3.17431176]
[1680557862223,0.10417266,1785.5,1785.4,15.55141176]
[1680557868445,0.10417266,1785.5,1785.4,16.07345176]
[1680557869373,0.10417266,1785.5,1785.4,16.07745176]
[1680557869581,0.10417266,1785.5,1785.4,16.63954176]
[1680557870083,0.10417266,1785.5,1785.4,16.07945176]
[1680557870878,0.16000001,1785.6,1785.4,17.32734054]
[1680557871076,0.16000001,1785.6,1785.5,1.96273405]
[1680557871244,0.16000001,1785.6,1785.5,5.00878623]
[1680557871443,0.16000001,1785.6,1785.5,4.72875623]
[1680557871855,0.16000001,1785.6,1785.5,5.85332255]
[1680557877061,0.16000001,1785.6,1785.5,5.87132255]
[1680557877272,0.16000001,1785.6,1785.5,5.85332255]
[1680557878788,0.16000001,1785.6,1785.5,5.87132255]
[1680557878991,0.16000001,1785.6,1785.5,5.85332255]
[1680557880195,0.16000001,1785.6,1785.5,5.90335255]
[1680557880497,0.16000001,1785.6,1785.5,5.62332255]
[1680557880871,0.16000001,1785.6,1785.5,5.90335255]
[1680557881256,0.16000001,1785.6,1785.5,5.62332255]
[1680557881482,0.16000001,1785.6,1785.5,5.90335255]
[1680557884295,0.16000001,1785.6,1785.5,6.13335255]
[1680557885298,0.16000001,1785.6,1785.5,6.69341255]
[1680557885511,0.16000001,1785.6,1785.5,6.71141255]
[1680557886366,0.16000001,1785.6,1785.5,7.41741255]
[1680557886791,0.16000001,1785.6,1785.5,13.31341255]
[1680557886959,0.0350181,1785.6,1785.5,14.19337647]
[1680557887363,0.0350181,1785.6,1785.5,15.90137647]
[1680557887564,0.0350181,1785.6,1785.5,19.19469778]
[1680557888024,0.11000001,1785.7,1785.5,19.19469778]
[1680557888171,0.11000001,1785.7,1785.6,15.06344039]
[1680557888373,0.11000001,1785.7,1785.6,19.97964039]
[1680557888991,0.11000001,1785.7,1785.6,21.09537704]
[1680557889216,0.11000001,1785.7,1785.6,22.26866227]
[1680557889399,0.11000001,1785.7,1785.6,21.39082384]
[1680557889920,0.11000001,1785.7,1785.6,22.26864645]
[1680557890594,0.11000001,1785.7,1785.6,21.09536122]
[1680557891286,0.11000001,1785.7,1785.6,24.09536122]
[1680557891972,0.11000001,1785.7,1785.6,25.26864645]
[1680557892171,0.11000001,1785.7,1785.6,25.97664645]
[1680557892415,0.11000001,1785.7,1785.6,24.80336122]